[Event "Vastgota Open 2023"]
[Site "Skara stadshotell, Jarnvagsgatan 5, Skara, Sweden"]
[Date "2023.02.19"]
[Round "9.12"]
[White "Lind, Jan-Olov"]
[Black "Johansson, Ulf"]
[Result "1-0"]
[TimeControl "15 minutes + 5 seconds per move from move one (Round 1 - 2) / 30 minutes + 10 seconds per move from move one (Round 3 - 9)"]
[WhiteFideId "1701193"]
[BlackFideId "1701380"]
[WhiteElo "2096"]
[BlackElo "2155"]

1. e4 {[%clk 00:30:17]} {[%emt 00:00:02]} c5 {[%clk 00:30:16]} {[%emt
00:00:05]} 2. Nf3 {[%clk 00:30:22]} {[%emt 00:00:04]} Nc6 {[%clk 00:30:23]}
{[%emt 00:00:03]} 3. d3 {[%clk 00:30:24]} {[%emt 00:00:08]} g6 {[%clk
00:29:56]} {[%emt 00:00:37]} 4. g3 {[%clk 00:30:32]} {[%emt 00:00:03]} Bg7
{[%clk 00:30:03]} {[%emt 00:00:03]} 5. Bg2 {[%clk 00:30:40]} {[%emt 00:00:01]}
d6 {[%clk 00:28:14]} {[%emt 00:01:59]} 6. O-O {[%clk 00:30:39]} {[%emt
00:00:10]} e5 {[%clk 00:28:15]} {[%emt 00:00:09]} 7. c3 {[%clk 00:30:41]}
{[%emt 00:00:09]} Nge7 {[%clk 00:28:21]} {[%emt 00:00:03]} 8. a3 {[%clk
00:30:48]} {[%emt 00:00:04]} O-O {[%clk 00:28:14]} {[%emt 00:00:18]} 9. b4
{[%clk 00:30:53]} {[%emt 00:00:04]} a6 {[%clk 00:27:21]} {[%emt 00:01:03]} 10.
Be3 {[%clk 00:30:27]} {[%emt 00:00:35]} b6 {[%clk 00:26:11]} {[%emt 00:01:21]}
11. Nbd2 {[%clk 00:30:10]} {[%emt 00:00:27]} h6 {[%clk 00:24:40]} {[%emt
00:01:42]} 12. Rb1 {[%clk 00:29:55]} {[%emt 00:00:24]} Be6 {[%clk 00:24:30]}
{[%emt 00:00:20]} 13. bxc5 {[%clk 00:28:37]} {[%emt 00:01:28]} dxc5 {[%clk
00:24:32]} {[%emt 00:00:09]} 14. Nc4 {[%clk 00:28:05]} {[%emt 00:00:42]} Rb8
{[%clk 00:24:26]} {[%emt 00:00:16]} 15. Qe2 {[%clk 00:25:26]} {[%emt 00:02:48]}
Qc7 {[%clk 00:22:13]} {[%emt 00:02:23]} 16. Rb2 {[%clk 00:16:02]} {[%emt
00:09:34]} f5 {[%clk 00:21:38]} {[%emt 00:00:45]} 17. exf5 {[%clk 00:14:52]}
{[%emt 00:01:20]} gxf5 {[%clk 00:21:45]} {[%emt 00:00:03]} 18. Bd2 {[%clk
00:12:17]} {[%emt 00:02:45]} b5 {[%clk 00:17:50]} {[%emt 00:04:05]} 19. Ncxe5
{[%clk 00:06:56]} {[%emt 00:05:31]} Nxe5 {[%clk 00:16:25]} {[%emt 00:01:35]} 20.
Nxe5 {[%clk 00:06:40]} {[%emt 00:00:27]} Qxe5 {[%clk 00:11:37]} {[%emt
00:04:58]} 21. Qxe5 {[%clk 00:06:01]} {[%emt 00:00:48]} Bxe5 {[%clk 00:11:44]}
{[%emt 00:00:03]} 22. Re1 {[%clk 00:06:07]} {[%emt 00:00:04]} Ng6 {[%clk
00:11:51]} {[%emt 00:00:04]} 23. f4 {[%clk 00:05:41]} {[%emt 00:00:36]} b4
{[%clk 00:11:46]} {[%emt 00:00:14]} 24. axb4 {[%clk 00:04:38]} {[%emt
00:01:14]} cxb4 {[%clk 00:11:34]} {[%emt 00:00:22]} 25. fxe5 {[%clk 00:04:34]}
{[%emt 00:00:14]} bxc3 {[%clk 00:09:47]} {[%emt 00:01:57]} 26. Rxb8 {[%clk
00:03:31]} {[%emt 00:01:13]} Rxb8 {[%clk 00:09:46]} {[%emt 00:00:11]} 27. Bxc3
{[%clk 00:03:40]} Rb3 {[%clk 00:09:22]} {[%emt 00:00:33]} 28. Rc1 {[%clk
00:03:36]} {[%emt 00:00:15]} Ne7 {[%clk 00:09:29]} {[%emt 00:00:02]} 29. d4
{[%clk 00:03:01]} {[%emt 00:00:45]} Nd5 {[%clk 00:08:57]} {[%emt 00:00:42]} 30.
Bxd5 {[%clk 00:02:44]} {[%emt 00:00:27]} Bxd5 {[%clk 00:09:06]} {[%emt
00:00:01]} 31. Kf2 {[%clk 00:02:41]} {[%emt 00:00:14]} Kf7 {[%clk 00:08:30]}
{[%emt 00:00:45]} 32. Ba1 {[%clk 00:02:13]} {[%emt 00:00:37]} Ra3 {[%clk
00:08:18]} {[%emt 00:00:23]} 33. Rc7+ {[%clk 00:02:15]} {[%emt 00:00:07]} Ke6
{[%clk 00:08:15]} {[%emt 00:00:14]} 34. Bc3 {[%clk 00:02:17]} {[%emt 00:00:07]}
Ra2+ {[%clk 00:05:26]} {[%emt 00:03:01]} 35. Ke3 {[%clk 00:02:25]} {[%emt
00:00:02]} Rxh2 {[%clk 00:05:04]} {[%emt 00:00:32]} 36. Bb4 {[%clk 00:02:31]}
{[%emt 00:00:03]} f4+ {[%clk 00:03:36]} {[%emt 00:01:38]} 37. Kxf4 {[%clk
00:02:12]} {[%emt 00:00:30]} Rf2+ {[%clk 00:03:34]} {[%emt 00:00:11]} 38. Ke3
{[%clk 00:01:59]} {[%emt 00:00:23]} Rf3+ {[%clk 00:03:41]} {[%emt 00:00:03]} 39.
Ke2 {[%clk 00:02:07]} {[%emt 00:00:02]} Rf7 {[%clk 00:03:45]} {[%emt 00:00:06]}
40. Rc8 {[%clk 00:01:42]} {[%emt 00:00:35]} Rg7 {[%clk 00:02:28]} {[%emt
00:01:28]} 41. Rh8 {[%clk 00:01:45]} {[%emt 00:00:06]} Bc4+ {[%clk 00:02:26]}
{[%emt 00:00:12]} 42. Kf2 {[%clk 00:01:43]} {[%emt 00:00:12]} Kd5 {[%clk
00:01:40]} {[%emt 00:00:56]} 43. Rxh6 {[%clk 00:01:19]} {[%emt 00:00:34]} Kxd4
{[%clk 00:01:23]} {[%emt 00:00:28]} 44. e6 {[%clk 00:01:27]} {[%emt 00:00:01]}
Bb5 {[%clk 00:00:46]} {[%emt 00:00:47]} 45. Rf6 {[%clk 00:01:24]} {[%emt
00:00:13]} Rc7 {[%clk 00:00:45]} {[%emt 00:00:11]} 46. e7 {[%clk 00:01:16]}
{[%emt 00:00:17]} Rc2+ {[%clk 00:00:50]} {[%emt 00:00:06]} 47. Kf3 {[%clk
00:01:21]} {[%emt 00:00:05]} Ke5 {[%clk 00:00:56]} {[%emt 00:00:04]} 48. Rf8
{[%clk 00:01:23]} {[%emt 00:00:08]} Rc4 {[%clk 00:00:46]} {[%emt 00:00:21]} 49.
e8=Q+ {[%clk 00:01:23]} {[%emt 00:00:09]} Bxe8 {[%clk 00:00:54]} {[%emt
00:00:02]} 50. Rxe8+ {[%clk 00:01:32]} {[%emt 00:00:01]} Kf5 {[%clk 00:01:03]}
{[%emt 00:00:01]} 51. Bd2 {[%clk 00:01:32]} {[%emt 00:00:10]} Ra4 {[%clk
00:01:10]} {[%emt 00:00:03]} 52. Bf4 {[%clk 00:01:28]} {[%emt 00:00:15]} Ra3+
{[%clk 00:01:18]} 53. Kg2 {[%clk 00:01:33]} {[%emt 00:00:05]} a5 {[%clk
00:01:27]} {[%emt 00:00:02]} 54. Re5+ {[%clk 00:01:39]} {[%emt 00:00:04]} Kg6
{[%clk 00:01:35]} {[%emt 00:00:02]} 55. Rg5+ {[%clk 00:01:46]} {[%emt
00:00:03]} Kf6 {[%clk 00:01:44]} {[%emt 00:00:01]} 56. Rb5 {[%clk 00:01:48]}
{[%emt 00:00:06]} a4 {[%clk 00:01:51]} {[%emt 00:00:04]} 57. Ra5 {[%clk
00:01:52]} {[%emt 00:00:06]} Kg6 {[%clk 00:01:55]} {[%emt 00:00:07]} 58. Kh3
{[%clk 00:02:00]} {[%emt 00:00:02]} Ra1 {[%clk 00:01:44]} {[%emt 00:00:21]} 59.
Kg4 {[%clk 00:02:08]} {[%emt 00:00:02]} Kf7 {[%clk 00:01:46]} {[%emt 00:00:08]}
60. Ra6 {[%clk 00:02:16]} {[%emt 00:00:02]} a3 {[%clk 00:01:41]} {[%emt
00:00:14]} 61. Kf5 {[%clk 00:02:20]} {[%emt 00:00:06]} a2 {[%clk 00:01:50]}
{[%emt 00:00:02]} 62. Ra7+ {[%clk 00:02:28]} {[%emt 00:00:01]} Ke8 {[%clk
00:01:58]} {[%emt 00:00:02]} 63. Ke6 {[%clk 00:02:15]} {[%emt 00:00:24]} Re1+
{[%clk 00:01:55]} {[%emt 00:00:13]} 64. Be5 {[%clk 00:02:24]} 1-0